[Event "*** Titled Tuesday Blitz"]
[Site "Chess.com"]
[Date "2020.04.14"]
[Round "5"]
[White "Bulldog167"]
[Black "Guenplen"]
[Result "1/2-1/2"]
[WhiteElo "2758"]
[BlackElo "2941"]
[TimeControl "180+1"]
[EndTime "10:52:38 PDT"]
[Termination "Game drawn by stalemate"]

1. d4 {[%clk 0:03:00.9]} 1... d5 {[%clk 0:02:59.4]} 2. c4 {[%clk 0:03:01.4]}
2... e6 {[%clk 0:02:59.8]} 3. Nc3 {[%clk 0:03:01.4]} 3... a6 {[%clk 0:02:58.9]}
4. cxd5 {[%clk 0:03:00.7]} 4... exd5 {[%clk 0:02:59.8]} 5. Nf3 {[%clk
0:03:01.1]} 5... Nf6 {[%clk 0:02:59.6]} 6. Bg5 {[%clk 0:03:01.3]} 6... Be6
{[%clk 0:02:59.3]} 7. Bxf6 {[%clk 0:02:59.3]} 7... Qxf6 {[%clk 0:02:59.5]} 8.
Qb3 {[%clk 0:03:00]} 8... Ra7 {[%clk 0:03:00]} 9. g3 {[%clk 0:03:00.4]} 9... Nd7
{[%clk 0:02:54.9]} 10. h4 {[%clk 0:02:36.5]} 10... c6 {[%clk 0:02:53.7]} 11. Ng5
{[%clk 0:02:28.7]} 11... Qxd4 {[%clk 0:02:44]} 12. Nxe6 {[%clk 0:02:14.5]} 12...
fxe6 {[%clk 0:02:44.9]} 13. Bh3 {[%clk 0:02:14.4]} 13... Bb4 {[%clk 0:02:34]}
14. O-O {[%clk 0:02:01.7]} 14... Nc5 {[%clk 0:02:26.9]} 15. Qc2 {[%clk
0:02:01.3]} 15... O-O {[%clk 0:02:09]} 16. Na4 {[%clk 0:01:40]} 16... Ne4 {[%clk
0:01:58.4]} 17. Bxe6+ {[%clk 0:01:34.6]} 17... Kh8 {[%clk 0:01:58.6]} 18. e3
{[%clk 0:01:34.4]} 18... Qe5 {[%clk 0:01:50.3]} 19. Bh3 {[%clk 0:01:31.3]} 19...
Bd6 {[%clk 0:01:38.2]} 20. Bg2 {[%clk 0:01:27.1]} 20... Nf6 {[%clk 0:01:34.1]}
21. Nc5 {[%clk 0:01:15.5]} 21... Rf7 {[%clk 0:01:24.1]} 22. Nd3 {[%clk
0:01:12.3]} 22... Qf5 {[%clk 0:01:21.1]} 23. Rac1 {[%clk 0:01:03.4]} 23... Ra8
{[%clk 0:01:19.6]} 24. Nf4 {[%clk 0:00:59]} 24... Qxc2 {[%clk 0:01:19.4]} 25.
Rxc2 {[%clk 0:00:59.3]} 25... Re8 {[%clk 0:01:20.3]} 26. Nd3 {[%clk 0:00:56]}
26... g6 {[%clk 0:01:14.9]} 27. b4 {[%clk 0:00:54.9]} 27... Ne4 {[%clk
0:01:12.3]} 28. a4 {[%clk 0:00:53.3]} 28... Rc7 {[%clk 0:00:47.2]} 29. Rfc1
{[%clk 0:00:44.1]} 29... Rce7 {[%clk 0:00:27.9]} 30. b5 {[%clk 0:00:39.4]} 30...
cxb5 {[%clk 0:00:28.8]} 31. axb5 {[%clk 0:00:40.3]} 31... a5 {[%clk 0:00:29.3]}
32. b6 {[%clk 0:00:35]} 32... a4 {[%clk 0:00:24.7]} 33. Ra1 {[%clk 0:00:27.7]}
33... a3 {[%clk 0:00:24.8]} 34. Nf4 {[%clk 0:00:27.8]} 34... Bxf4 {[%clk
0:00:18.4]} 35. gxf4 {[%clk 0:00:28.7]} 35... Ra8 {[%clk 0:00:18.3]} 36. Rca2
{[%clk 0:00:24.7]} 36... Re6 {[%clk 0:00:18.1]} 37. Rxa3 {[%clk 0:00:23.6]}
37... Rxa3 {[%clk 0:00:19]} 38. Rxa3 {[%clk 0:00:24.3]} 38... Rxb6 {[%clk
0:00:19.6]} 39. Bxe4 {[%clk 0:00:23.7]} 39... dxe4 {[%clk 0:00:20.5]} 40. Ra4
{[%clk 0:00:24]} 40... Re6 {[%clk 0:00:20.4]} 41. Rb4 {[%clk 0:00:23.5]} 41...
b6 {[%clk 0:00:20.4]} 42. Kg2 {[%clk 0:00:22.6]} 42... Kg7 {[%clk 0:00:20.5]}
43. f3 {[%clk 0:00:22.2]} 43... exf3+ {[%clk 0:00:21.4]} 44. Kxf3 {[%clk
0:00:23]} 44... Kf7 {[%clk 0:00:21.8]} 45. e4 {[%clk 0:00:23.1]} 45... Ke7
{[%clk 0:00:22.2]} 46. Ra4 {[%clk 0:00:20.6]} 46... Kd6 {[%clk 0:00:21]} 47. e5+
{[%clk 0:00:18.5]} 47... Kd5 {[%clk 0:00:18.1]} 48. Ra7 {[%clk 0:00:18]} 48...
h5 {[%clk 0:00:17.2]} 49. Ke3 {[%clk 0:00:15.7]} 49... b5 {[%clk 0:00:13.8]} 50.
Rb7 {[%clk 0:00:15.7]} 50... Kc6 {[%clk 0:00:12.3]} 51. Rb8 {[%clk 0:00:16]}
51... Kc5 {[%clk 0:00:12]} 52. Ke4 {[%clk 0:00:14]} 52... Rc6 {[%clk 0:00:10]}
53. f5 {[%clk 0:00:13]} 53... gxf5+ {[%clk 0:00:10.9]} 54. Kxf5 {[%clk
0:00:13.6]} 54... b4 {[%clk 0:00:06.5]} 55. e6 {[%clk 0:00:13.4]} 55... Kd6
{[%clk 0:00:04.6]} 56. Rxb4 {[%clk 0:00:11.4]} 56... Rc1 {[%clk 0:00:03.2]} 57.
Rd4+ {[%clk 0:00:08.9]} 57... Ke7 {[%clk 0:00:03.4]} 58. Rd7+ {[%clk 0:00:09.3]}
58... Ke8 {[%clk 0:00:03.9]} 59. Rh7 {[%clk 0:00:08.9]} 59... Rf1+ {[%clk
0:00:02.5]} 60. Kg5 {[%clk 0:00:09.3]} 60... Re1 {[%clk 0:00:01.5]} 61. Kf6
{[%clk 0:00:04.6]} 61... Rf1+ {[%clk 0:00:01.8]} 62. Kg6 {[%clk 0:00:05.1]}
62... Re1 {[%clk 0:00:02.5]} 63. Kf6 {[%clk 0:00:01.9]} 63... Rf1+ {[%clk
0:00:02.9]} 64. Ke5 {[%clk 0:00:02.6]} 64... Re1+ {[%clk 0:00:03.1]} 65. Kf5
{[%clk 0:00:03.2]} 65... Rf1+ {[%clk 0:00:03.4]} 66. Kg5 {[%clk 0:00:03.4]}
66... Re1 {[%clk 0:00:03.8]} 67. Rh6 {[%clk 0:00:04]} 67... Ke7 {[%clk
0:00:03.2]} 68. Kxh5 {[%clk 0:00:04]} 68... Re5+ {[%clk 0:00:02.1]} 69. Kg4
{[%clk 0:00:01.6]} 69... Rxe6 {[%clk 0:00:02.4]} 70. Rxe6+ {[%clk 0:00:02.3]}
70... Kxe6 {[%clk 0:00:03.3]} 71. Kg5 {[%clk 0:00:03]} 71... Kf7 {[%clk
0:00:04.2]} 72. Kf5 {[%clk 0:00:03.5]} 72... Kg8 {[%clk 0:00:05.1]} 73. h5
{[%clk 0:00:04.4]} 73... Kh8 {[%clk 0:00:05.9]} 74. h6 {[%clk 0:00:05.3]} 74...
Kg8 {[%clk 0:00:06.7]} 75. h7+ {[%clk 0:00:06.2]} 75... Kh8 {[%clk 0:00:07.6]}
76. Kg6 {[%clk 0:00:06]} 1/2-1/2

[Event "*** Titled Tuesday Blitz"]
[Site "Chess.com"]
[Date "2020.04.14"]
[Round "5"]
[White "Dare-Dare"]
[Black "pedroholly22"]
[Result "1-0"]
[WhiteElo "2193"]
[BlackElo "2333"]
[TimeControl "180+1"]
[EndTime "10:52:42 PDT"]
[Termination "Dare-Dare won by resignation"]

1. Nf3 {[%clk 0:03:00.9]} 1... d5 {[%clk 0:02:58.2]} 2. c4 {[%clk 0:03:01.8]}
2... c6 {[%clk 0:02:58]} 3. e3 {[%clk 0:03:02.1]} 3... Nf6 {[%clk 0:02:57.1]} 4.
Nc3 {[%clk 0:03:02.8]} 4... g6 {[%clk 0:02:55.7]} 5. b3 {[%clk 0:03:01.8]} 5...
Bg7 {[%clk 0:02:55.7]} 6. Bb2 {[%clk 0:03:02.5]} 6... O-O {[%clk 0:02:55.9]} 7.
Be2 {[%clk 0:03:03.1]} 7... Bf5 {[%clk 0:02:55.8]} 8. O-O {[%clk 0:03:03.2]}
8... dxc4 {[%clk 0:02:54.9]} 9. Bxc4 {[%clk 0:03:01.3]} 9... Bd3 {[%clk
0:02:55.2]} 10. Bxd3 {[%clk 0:03:00.1]} 10... Qxd3 {[%clk 0:02:54.6]} 11. Ne5
{[%clk 0:02:54.8]} 11... Qd8 {[%clk 0:02:53.2]} 12. d4 {[%clk 0:02:54.8]} 12...
Nbd7 {[%clk 0:02:52.5]} 13. Nc4 {[%clk 0:02:54.4]} 13... Nb6 {[%clk 0:02:51.7]}
14. Qe2 {[%clk 0:02:52.9]} 14... Nfd5 {[%clk 0:02:49.7]} 15. Ne4 {[%clk
0:02:49.4]} 15... Nxc4 {[%clk 0:02:46.7]} 16. bxc4 {[%clk 0:02:49.1]} 16... Nf6
{[%clk 0:02:47.2]} 17. Nc5 {[%clk 0:02:49.1]} 17... b6 {[%clk 0:02:46.1]} 18.
Nb3 {[%clk 0:02:48]} 18... Qd7 {[%clk 0:02:45.7]} 19. Rac1 {[%clk 0:02:46.4]}
19... Rfe8 {[%clk 0:02:44.4]} 20. Rfd1 {[%clk 0:02:46.5]} 20... Qc7 {[%clk
0:02:42.7]} 21. a4 {[%clk 0:02:45.8]} 21... Nd7 {[%clk 0:02:37.9]} 22. c5 {[%clk
0:02:17.8]} 22... bxc5 {[%clk 0:02:34.7]} 23. Nxc5 {[%clk 0:02:17.5]} 23... Nxc5
{[%clk 0:02:30.9]} 24. Rxc5 {[%clk 0:02:17.3]} 24... Rab8 {[%clk 0:02:29.6]} 25.
Rdc1 {[%clk 0:02:17.1]} 25... Qb6 {[%clk 0:02:20.8]} 26. Bc3 {[%clk 0:02:04.7]}
26... Qb3 {[%clk 0:02:20]} 27. a5 {[%clk 0:02:02.1]} 27... Bf8 {[%clk
0:02:11.2]} 28. Rxc6 {[%clk 0:01:48.5]} 28... Rec8 {[%clk 0:02:10.9]} 29. Rxc8
{[%clk 0:01:41.8]} 29... Rxc8 {[%clk 0:02:11.8]} 30. Bd2 {[%clk 0:01:42.1]}
30... Rxc1+ {[%clk 0:02:02]} 31. Bxc1 {[%clk 0:01:43]} 31... e6 {[%clk
0:01:56.1]} 32. Bd2 {[%clk 0:01:39.7]} 32... Qc2 {[%clk 0:01:52.3]} 33. Qe1
{[%clk 0:01:36.8]} 33... Ba3 {[%clk 0:01:51]} 34. g3 {[%clk 0:01:35.4]} 34... h5
{[%clk 0:01:48.6]} 35. Bb4 {[%clk 0:01:33.8]} 35... Bxb4 {[%clk 0:01:30.6]} 36.
Qxb4 {[%clk 0:01:34.7]} 36... Qc1+ {[%clk 0:01:29.9]} 37. Kg2 {[%clk 0:01:34.8]}
37... Qc6+ {[%clk 0:01:29.5]} 38. Kf1 {[%clk 0:00:59.9]} 38... Qc1+ {[%clk
0:01:24.8]} 39. Ke2 {[%clk 0:00:59.3]} 39... Qc2+ {[%clk 0:01:24.9]} 40. Qd2
{[%clk 0:00:58.8]} 40... Qe4 {[%clk 0:01:21.8]} 41. f3 {[%clk 0:00:52.3]} 41...
Qd5 {[%clk 0:01:20.8]} 42. Kf2 {[%clk 0:00:51.7]} 42... Qb5 {[%clk 0:01:19.4]}
43. e4 {[%clk 0:00:50]} 43... Kf8 {[%clk 0:01:17]} 44. Qc3 {[%clk 0:00:46.4]}
44... Kg8 {[%clk 0:01:06.4]} 45. Qd2 {[%clk 0:00:29.6]} 45... Kf8 {[%clk
0:01:03.9]} 46. Ke3 {[%clk 0:00:20.9]} 46... Ke7 {[%clk 0:01:01.5]} 47. Qc3
{[%clk 0:00:19.9]} 47... Kd6 {[%clk 0:01:01.1]} 48. e5+ {[%clk 0:00:18.2]} 48...
Kd5 {[%clk 0:00:48.4]} 49. Qd3 {[%clk 0:00:17.7]} 49... Kc6 {[%clk 0:00:41.4]}
50. Qe4+ {[%clk 0:00:16]} 50... Kc7 {[%clk 0:00:40.1]} 51. Qf4 {[%clk
0:00:13.8]} 51... Qb3+ {[%clk 0:00:35.2]} 52. Kf2 {[%clk 0:00:13.8]} 52... Qa2+
{[%clk 0:00:26.7]} 53. Kg1 {[%clk 0:00:14.2]} 53... Qxa5 {[%clk 0:00:25.2]} 54.
Qxf7+ {[%clk 0:00:14.5]} 54... Kb8 {[%clk 0:00:24.6]} 55. Qxe6 {[%clk
0:00:14.7]} 55... Qe1+ {[%clk 0:00:23.6]} 56. Kg2 {[%clk 0:00:14.8]} 56... Qd2+
{[%clk 0:00:23.8]} 57. Kh3 {[%clk 0:00:15.3]} 57... Qxd4 {[%clk 0:00:23.5]} 58.
Qe8+ {[%clk 0:00:15.2]} 58... Kc7 {[%clk 0:00:22.4]} 59. e6 {[%clk 0:00:15.8]}
59... Qd5 {[%clk 0:00:20.6]} 60. Qe7+ {[%clk 0:00:16.1]} 60... Kc8 {[%clk
0:00:19.5]} 61. Qe8+ {[%clk 0:00:15.5]} 61... Kc7 {[%clk 0:00:18.6]} 62. Qxg6
{[%clk 0:00:16.1]} 62... Kd6 {[%clk 0:00:17.3]} 63. e7+ {[%clk 0:00:15.4]} 63...
Kxe7 {[%clk 0:00:16.3]} 64. Qg7+ {[%clk 0:00:15.9]} 64... Kd6 {[%clk 0:00:15.8]}
65. Qxa7 {[%clk 0:00:15.9]} 65... Qxf3 {[%clk 0:00:15.8]} 66. Qb8+ {[%clk
0:00:15.2]} 66... Ke6 {[%clk 0:00:15.6]} 67. Qc8+ {[%clk 0:00:14.9]} 67... Ke7
{[%clk 0:00:15.7]} 68. Qc7+ {[%clk 0:00:15.2]} 68... Ke8 {[%clk 0:00:15.6]} 69.
Qe5+ {[%clk 0:00:15]} 69... Kd8 {[%clk 0:00:13.9]} 70. Qf4 {[%clk 0:00:14.7]}
70... Qd1 {[%clk 0:00:12.4]} 71. Kh4 {[%clk 0:00:13.8]} 71... Qe2 {[%clk
0:00:11.8]} 72. Qg5+ {[%clk 0:00:13.6]} 72... Kd7 {[%clk 0:00:11.2]} 73. h3
{[%clk 0:00:14.2]} 73... Qe4+ {[%clk 0:00:10.6]} 74. Qf4 {[%clk 0:00:14.6]}
74... Qg6 {[%clk 0:00:09.2]} 75. Qg5 {[%clk 0:00:13.5]} 75... Qe4+ {[%clk
0:00:08.8]} 76. Kxh5 {[%clk 0:00:14.1]} 76... Ke6 {[%clk 0:00:09]} 77. Qg4+
{[%clk 0:00:14.3]} 77... Ke5 {[%clk 0:00:07.7]} 78. Qxe4+ {[%clk 0:00:14.3]}
78... Kxe4 {[%clk 0:00:08.6]} 79. g4 {[%clk 0:00:15.2]} 1-0

[Event "*** Titled Tuesday Blitz"]
[Site "Chess.com"]
[Date "2020.04.14"]
[Round "5"]
[White "AnkitGajwa"]
[Black "VALPARAISO37"]
[Result "1-0"]
[WhiteElo "2549"]
[BlackElo "2362"]
[TimeControl "180+1"]
[EndTime "10:52:43 PDT"]
[Termination "AnkitGajwa won by checkmate"]

1. e4 {[%clk 0:03:00.9]} 1... e5 {[%clk 0:02:59.8]} 2. Nf3 {[%clk 0:02:46.8]}
2... Nc6 {[%clk 0:02:57.4]} 3. Bb5 {[%clk 0:02:46.5]} 3... g6 {[%clk 0:02:56.6]}
4. c3 {[%clk 0:02:45.7]} 4... Bg7 {[%clk 0:02:56.5]} 5. d4 {[%clk 0:02:45.1]}
5... exd4 {[%clk 0:02:56.8]} 6. cxd4 {[%clk 0:02:45]} 6... a6 {[%clk 0:02:56.7]}
7. Ba4 {[%clk 0:02:44.3]} 7... Nge7 {[%clk 0:02:55.4]} 8. d5 {[%clk 0:02:44]}
8... Na5 {[%clk 0:02:51.7]} 9. O-O {[%clk 0:02:43.5]} 9... b5 {[%clk 0:02:51.1]}
10. Bc2 {[%clk 0:02:38.6]} 10... O-O {[%clk 0:02:49.4]} 11. Bd2 {[%clk
0:02:38.7]} 11... Nc4 {[%clk 0:02:48.4]} 12. Bc3 {[%clk 0:02:38.8]} 12... Nxb2
{[%clk 0:02:48.4]} 13. Qc1 {[%clk 0:02:38.9]} 13... Bxc3 {[%clk 0:02:46.9]} 14.
Nxc3 {[%clk 0:02:38.5]} 14... Nc4 {[%clk 0:02:47.2]} 15. Qh6 {[%clk 0:02:30.4]}
15... f6 {[%clk 0:02:46.9]} 16. Bb3 {[%clk 0:02:25]} 16... d6 {[%clk 0:02:46.3]}
17. Nd4 {[%clk 0:02:22.6]} 17... Rf7 {[%clk 0:02:29.7]} 18. Ne6 {[%clk
0:02:17.3]} 18... Bxe6 {[%clk 0:02:27.5]} 19. dxe6 {[%clk 0:02:17]} 19... Rg7
{[%clk 0:02:27.6]} 20. f4 {[%clk 0:02:09]} 20... Nd2 {[%clk 0:02:25.3]} 21. f5
{[%clk 0:01:49]} 21... Nxf1 {[%clk 0:02:25.1]} 22. Rxf1 {[%clk 0:01:48.4]} 22...
gxf5 {[%clk 0:02:21.8]} 23. exf5 {[%clk 0:01:44.6]} 23... Qf8 {[%clk 0:02:21.4]}
24. Kh1 {[%clk 0:01:42.5]} 24... Rg5 {[%clk 0:02:20.2]} 25. Qh3 {[%clk
0:01:40.5]} 25... Kh8 {[%clk 0:02:04.3]} 26. Ne4 {[%clk 0:01:39.5]} 26... Rg7
{[%clk 0:02:03.5]} 27. g4 {[%clk 0:01:37.7]} 27... d5 {[%clk 0:01:56.4]} 28. Nc5
{[%clk 0:01:32.8]} 28... Qc8 {[%clk 0:01:50.1]} 29. Nd7 {[%clk 0:01:29.6]} 29...
Qb7 {[%clk 0:01:47.8]} 30. Qf3 {[%clk 0:01:12.1]} 30... c5 {[%clk 0:01:22.9]}
31. Nxf6 {[%clk 0:01:01.2]} 31... c4 {[%clk 0:01:18.7]} 32. Bc2 {[%clk
0:01:00.6]} 32... Rf8 {[%clk 0:00:59.6]} 33. Nh5 {[%clk 0:00:58]} 33... Rg6
{[%clk 0:00:55]} 34. Kg1 {[%clk 0:00:23.5]} 34... Qb6+ {[%clk 0:00:53]} 35. Rf2
{[%clk 0:00:23]} 35... Rxg4+ {[%clk 0:00:47.6]} 36. Qxg4 {[%clk 0:00:22]} 36...
Rg8 {[%clk 0:00:47.6]} 37. Qxg8+ {[%clk 0:00:21.2]} 37... Nxg8 {[%clk
0:00:47.5]} 38. Kf1 {[%clk 0:00:20.2]} 38... d4 {[%clk 0:00:42.9]} 39. f6 {[%clk
0:00:19.7]} 39... Nxf6 {[%clk 0:00:37.6]} 40. Rxf6 {[%clk 0:00:19]} 40... Kg8
{[%clk 0:00:16.9]} 41. e7 {[%clk 0:00:18.9]} 41... Qb8 {[%clk 0:00:15.2]} 42.
Rf8+ {[%clk 0:00:18.5]} 42... Qxf8+ {[%clk 0:00:15.3]} 43. exf8=Q+ {[%clk
0:00:18.8]} 43... Kxf8 {[%clk 0:00:16]} 44. Nf6 {[%clk 0:00:19.1]} 44... d3
{[%clk 0:00:15.5]} 45. Bxd3 {[%clk 0:00:18.5]} 45... cxd3 {[%clk 0:00:14.1]} 46.
Nxh7+ {[%clk 0:00:19]} 46... Kg7 {[%clk 0:00:14.7]} 47. Ng5 {[%clk 0:00:18.8]}
47... Kg6 {[%clk 0:00:14.7]} 48. Nf3 {[%clk 0:00:19.1]} 48... Kf5 {[%clk
0:00:14.9]} 49. Ke1 {[%clk 0:00:17.8]} 49... Kf4 {[%clk 0:00:15.2]} 50. Nd4
{[%clk 0:00:17.9]} 50... Kg4 {[%clk 0:00:14.9]} 51. Kd2 {[%clk 0:00:17.5]} 51...
Kh3 {[%clk 0:00:13.6]} 52. Kxd3 {[%clk 0:00:17.9]} 52... Kxh2 {[%clk 0:00:13.9]}
53. Kc3 {[%clk 0:00:18.3]} 53... Kg3 {[%clk 0:00:14.2]} 54. Kb4 {[%clk
0:00:18.9]} 54... Kf4 {[%clk 0:00:14.5]} 55. Nxb5 {[%clk 0:00:19.4]} 55... Ke5
{[%clk 0:00:12.9]} 56. Nc7 {[%clk 0:00:19]} 56... Kd6 {[%clk 0:00:12.8]} 57.
Nxa6 {[%clk 0:00:18.5]} 57... Kc6 {[%clk 0:00:13.2]} 58. Nc5 {[%clk 0:00:18.9]}
58... Kb6 {[%clk 0:00:13.6]} 59. a4 {[%clk 0:00:18.5]} 59... Ka7 {[%clk
0:00:13.7]} 60. Kb5 {[%clk 0:00:18]} 60... Ka8 {[%clk 0:00:14]} 61. a5 {[%clk
0:00:18.5]} 61... Kb8 {[%clk 0:00:14.4]} 62. Kb6 {[%clk 0:00:18.7]} 62... Ka8
{[%clk 0:00:14.7]} 63. a6 {[%clk 0:00:19.1]} 63... Kb8 {[%clk 0:00:15]} 64. Ne6
{[%clk 0:00:19.2]} 64... Kc8 {[%clk 0:00:14.6]} 65. a7 {[%clk 0:00:19.3]} 65...
Kd7 {[%clk 0:00:15.4]} 66. Nc5+ {[%clk 0:00:19.9]} 66... Kd6 {[%clk 0:00:15.4]}
67. a8=Q {[%clk 0:00:20.5]} 67... Ke5 {[%clk 0:00:15.7]} 68. Qe4+ {[%clk
0:00:20.7]} 68... Kf6 {[%clk 0:00:15.9]} 69. Qe6+ {[%clk 0:00:20.9]} 69... Kg5
{[%clk 0:00:16.2]} 70. Qe5+ {[%clk 0:00:20.6]} 70... Kg4 {[%clk 0:00:16.3]} 71.
Qf6 {[%clk 0:00:20.9]} 71... Kg3 {[%clk 0:00:15.3]} 72. Qf5 {[%clk 0:00:21.3]}
72... Kg2 {[%clk 0:00:15.3]} 73. Qf4 {[%clk 0:00:21.7]} 73... Kg1 {[%clk
0:00:15.5]} 74. Qf3 {[%clk 0:00:22]} 74... Kh2 {[%clk 0:00:14.5]} 75. Qg4 {[%clk
0:00:22.4]} 75... Kh1 {[%clk 0:00:14.6]} 76. Ne4 {[%clk 0:00:22.8]} 76... Kh2
{[%clk 0:00:15.2]} 77. Kc5 {[%clk 0:00:23.2]} 77... Kh1 {[%clk 0:00:16.1]} 78.
Nf2+ {[%clk 0:00:23.5]} 78... Kh2 {[%clk 0:00:17]} 79. Nd3 {[%clk 0:00:23.3]}
79... Kh1 {[%clk 0:00:17.9]} 80. Nf4 {[%clk 0:00:23.7]} 80... Kh2 {[%clk
0:00:18.8]} 81. Qg2# {[%clk 0:00:24]} 1-0

[Event "*** Titled Tuesday Blitz"]
[Site "Chess.com"]
[Date "2020.04.14"]
[Round "5"]
[White "GMaka"]
[Black "talman67"]
[Result "1-0"]
[WhiteElo "2273"]
[BlackElo "2522"]
[TimeControl "180+1"]
[EndTime "10:52:54 PDT"]
[Termination "GMaka won on time"]

1. Nf3 {[%clk 0:03:00.9]} 1... Nf6 {[%clk 0:02:59.8]} 2. b3 {[%clk 0:03:00.8]}
2... d5 {[%clk 0:02:55.7]} 3. Bb2 {[%clk 0:03:01.7]} 3... c6 {[%clk 0:02:54.7]}
4. g3 {[%clk 0:02:57.7]} 4... Bg4 {[%clk 0:02:54.4]} 5. Bg2 {[%clk 0:02:58.6]}
5... Nbd7 {[%clk 0:02:53.1]} 6. O-O {[%clk 0:02:57.1]} 6... Bxf3 {[%clk
0:02:51.1]} 7. exf3 {[%clk 0:02:55]} 7... e5 {[%clk 0:02:52]} 8. Re1 {[%clk
0:02:52.2]} 8... Bd6 {[%clk 0:02:49.2]} 9. f4 {[%clk 0:02:51.6]} 9... e4 {[%clk
0:02:46.4]} 10. d3 {[%clk 0:02:51]} 10... e3 {[%clk 0:02:27.2]} 11. Rxe3+ {[%clk
0:02:36.1]} 11... Kf8 {[%clk 0:02:22]} 12. h3 {[%clk 0:02:35.9]} 12... h5 {[%clk
0:02:17.9]} 13. Nd2 {[%clk 0:02:31.1]} 13... h4 {[%clk 0:02:14.2]} 14. d4 {[%clk
0:02:31.3]} 14... hxg3 {[%clk 0:02:12.1]} 15. fxg3 {[%clk 0:02:31.8]} 15... a5
{[%clk 0:02:10.4]} 16. a4 {[%clk 0:02:28.9]} 16... Qb6 {[%clk 0:02:07.2]} 17. c3
{[%clk 0:02:19.9]} 17... c5 {[%clk 0:02:05.9]} 18. Nf3 {[%clk 0:02:11.6]} 18...
c4 {[%clk 0:02:04.1]} 19. Ba3 {[%clk 0:02:05.7]} 19... Bxa3 {[%clk 0:01:48.2]}
20. Rxa3 {[%clk 0:02:06.6]} 20... Rc8 {[%clk 0:01:47.1]} 21. Ne5 {[%clk
0:02:03.9]} 21... Kg8 {[%clk 0:01:32.3]} 22. bxc4 {[%clk 0:01:56.5]} 22... dxc4
{[%clk 0:01:32.3]} 23. Ra1 {[%clk 0:01:45]} 23... Qc7 {[%clk 0:01:25.4]} 24. Rb1
{[%clk 0:01:42.9]} 24... Nb6 {[%clk 0:01:22.8]} 25. Rb5 {[%clk 0:01:39.7]} 25...
Rd8 {[%clk 0:01:18.2]} 26. Qb1 {[%clk 0:01:27.9]} 26... Nfd5 {[%clk 0:01:15.2]}
27. Bxd5 {[%clk 0:00:48.3]} 27... Nxd5 {[%clk 0:01:16.1]} 28. Rf3 {[%clk
0:00:49]} 28... b6 {[%clk 0:01:13.7]} 29. Qe4 {[%clk 0:00:43.9]} 29... Nf6
{[%clk 0:00:48.5]} 30. Qf5 {[%clk 0:00:40.5]} 30... Rh5 {[%clk 0:00:49]} 31. Qb1
{[%clk 0:00:36.2]} 31... Rxh3 {[%clk 0:00:49.4]} 32. Kg2 {[%clk 0:00:29.7]}
32... Rh8 {[%clk 0:00:38.4]} 33. Rxb6 {[%clk 0:00:30]} 33... Qc8 {[%clk
0:00:32.2]} 34. f5 {[%clk 0:00:28.6]} 34... Qa8 {[%clk 0:00:16.2]} 35. Rb7
{[%clk 0:00:28.1]} 35... Rf8 {[%clk 0:00:15.2]} 36. Qb5 {[%clk 0:00:25.5]} 36...
Ne4 {[%clk 0:00:10.3]} 37. Qd5 {[%clk 0:00:21]} 37... Ng5 {[%clk 0:00:10.7]} 38.
Rf4 {[%clk 0:00:20.2]} 38... Rh6 {[%clk 0:00:09.9]} 39. Rb5 {[%clk 0:00:18.5]}
39... Qb8 {[%clk 0:00:06.1]} 40. Rh4 {[%clk 0:00:17.7]} 40... Rxh4 {[%clk
0:00:05.4]} 41. gxh4 {[%clk 0:00:18.6]} 41... Nh7 {[%clk 0:00:05.9]} 42. Nd7
{[%clk 0:00:15.3]} 42... Qd8 {[%clk 0:00:05]} 43. Nxf8 {[%clk 0:00:14.3]} 43...
Qxh4 {[%clk 0:00:05.7]} 44. Nxh7 {[%clk 0:00:13.4]} 44... Qg4+ {[%clk
0:00:05.1]} 45. Kf2 {[%clk 0:00:13.8]} 45... Qh4+ {[%clk 0:00:05.4]} 46. Kf3
{[%clk 0:00:13.8]} 46... Qh3+ {[%clk 0:00:04.8]} 47. Ke2 {[%clk 0:00:13.6]}
47... Qh2+ {[%clk 0:00:04]} 48. Ke3 {[%clk 0:00:13.3]} 48... Qh6+ {[%clk
0:00:02.3]} 49. Ke4 {[%clk 0:00:12]} 49... Qd2 {[%clk 0:00:02]} 50. Ke5 {[%clk
0:00:11.8]} 50... Kxh7 {[%clk 0:00:01.6]} 51. Kd6 {[%clk 0:00:12]} 51... Qxc3
{[%clk 0:00:01.4]} 52. Kc5 {[%clk 0:00:11.8]} 52... Qd3 {[%clk 0:00:01.5]} 53.
Qxc4 {[%clk 0:00:11.8]} 53... Qxf5+ {[%clk 0:00:02.1]} 54. d5 {[%clk 0:00:12.7]}
54... Qf2+ {[%clk 0:00:01.9]} 55. Kc6 {[%clk 0:00:12.4]} 55... Qf6+ {[%clk
0:00:01.8]} 56. d6 {[%clk 0:00:12.1]} 56... g6 {[%clk 0:00:02.7]} 57. Rd5 {[%clk
0:00:11.1]} 57... Qd8 {[%clk 0:00:02.5]} 58. Kb5 {[%clk 0:00:10.1]} 58... Qb8+
{[%clk 0:00:02.6]} 59. Kxa5 {[%clk 0:00:10.4]} 59... Qa7+ {[%clk 0:00:02.9]} 60.
Kb4 {[%clk 0:00:11]} 60... Qb6+ {[%clk 0:00:03.1]} 61. Qb5 {[%clk 0:00:10.1]}
61... Qe3 {[%clk 0:00:02.7]} 62. d7 {[%clk 0:00:10.3]} 62... Qe1+ {[%clk
0:00:02.9]} 63. Kc5 {[%clk 0:00:10.6]} 63... Qe7+ {[%clk 0:00:02.5]} 64. Kc6
{[%clk 0:00:10.6]} 64... Qe6+ {[%clk 0:00:02.2]} 65. Rd6 {[%clk 0:00:11.1]}
65... Qe4+ {[%clk 0:00:02.7]} 66. Qd5 {[%clk 0:00:10.6]} 66... Qc2+ {[%clk
0:00:03.1]} 67. Qc5 {[%clk 0:00:10.5]} 67... Qxa4+ {[%clk 0:00:02.9]} 68. Kd5
{[%clk 0:00:10.3]} 68... Qa8+ {[%clk 0:00:02.6]} 69. Rc6 {[%clk 0:00:10]} 69...
Qa2+ {[%clk 0:00:02.2]} 70. Kd6 {[%clk 0:00:10]} 70... Qh2+ {[%clk 0:00:02.1]}
71. Ke7 {[%clk 0:00:09.5]} 71... Qe2+ {[%clk 0:00:01.4]} 72. Kxf7 {[%clk
0:00:08.1]} 72... Qf3+ {[%clk 0:00:01.8]} 73. Rf6 {[%clk 0:00:07]} 1-0